fUSD/lending_fUSD_20260512
["ID","MTS","AMOUNT","RATE_DAILY","PERIOD"]
[422044945,1778528760000,-500.0,0.00041025,120]
[422044941,1778528760000,-500.0,0.00041025,120]
[422044944,1778528760000,-500.0,0.00041025,120]
[422044942,1778528760000,-500.0,0.00041025,120]
[422044940,1778528760000,-500.0,0.00041025,120]
[422044939,1778528760000,-500.0,0.00041025,120]
[422044951,1778528760000,-500.0,0.00041025,120]
[422044943,1778528760000,-500.0,0.00041025,120]
[422044952,1778528760000,-500.0,0.00041025,120]
[422044950,1778528760000,-649.34841319,0.00041025,120]
[422044955,1778528760000,-500.0,0.00041025,120]
[422044965,1778528760000,-500.0,0.00041025,120]
[422044964,1778528760000,-500.0,0.00041025,120]
[422044963,1778528760000,-500.0,0.00041025,120]
[422044961,1778528760000,-500.0,0.00041025,120]
[422044960,1778528760000,-500.0,0.00041025,120]
[422044962,1778528760000,-500.0,0.00041025,120]
[422044958,1778528760000,-500.0,0.00041025,120]
[422044956,1778528760000,-500.0,0.00041025,120]
[422044957,1778528760000,-500.0,0.00041025,120]
[422044954,1778528760000,-500.0,0.00041025,120]
[422044953,1778528760000,-500.0,0.00041025,120]
[422044959,1778528760000,-500.0,0.00041025,120]
[422044974,1778528761000,-500.0,0.00041025,120]
[422044979,1778528761000,-500.0,0.00041025,120]
[422044975,1778528761000,-500.0,0.00041025,120]
[422044977,1778528761000,-500.0,0.00041025,120]
[422044976,1778528761000,-500.0,0.00041025,120]
[422044973,1778528761000,-500.0,0.00041025,120]
[422044967,1778528761000,-500.0,0.00041025,120]
[422044971,1778528761000,-225.46084962,0.00041025,120]
[422044969,1778528761000,-585.42637398,0.00041025,120]
[422044970,1778528761000,-730.0807855,0.00041025,120]
[422044968,1778528761000,-500.0,0.00041025,120]
[422044978,1778528761000,-500.0,0.00041025,120]
[422044966,1778528761000,-500.0,0.00041025,120]
[422044972,1778528761000,-500.0,0.00041025,120]
[422044980,1778528761000,-500.0,0.00041025,120]
[422044984,1778528761000,-500.0,0.00041025,120]
[422044982,1778528761000,-500.0,0.00041025,120]
[422044981,1778528761000,-500.0,0.00041025,120]
[422044996,1778528761000,-387.76011325,0.00041025,120]
[422044995,1778528761000,-494.0,0.00041025,120]
[422044993,1778528761000,-500.0,0.00041025,120]
[422044994,1778528761000,-500.0,0.00041025,120]
[422044991,1778528761000,-500.0,0.00041025,120]
[422044992,1778528761000,-500.0,0.00041025,120]
[422044989,1778528761000,-500.0,0.00041025,120]
[422044987,1778528761000,-500.0,0.00041025,120]
[422044988,1778528761000,-500.0,0.00041025,120]
[422044986,1778528761000,-500.0,0.00041025,120]
[422044985,1778528761000,-500.0,0.00041025,120]
[422044983,1778528761000,-500.0,0.00041025,120]
[422044990,1778528761000,-500.0,0.00041025,120]
[422045005,1778528762000,-500.0,0.00041025,120]
[422045006,1778528762000,-500.0,0.00041025,120]
[422045008,1778528762000,-500.0,0.00041025,120]
[422045007,1778528762000,-325.57009484,0.00041025,120]
[422045004,1778528762000,-500.0,0.00041025,120]
[422044997,1778528762000,-264.24537488,0.00041025,120]
[422045003,1778528762000,-500.0,0.00041025,120]
[422045000,1778528762000,-500.0,0.00041025,120]
[422045001,1778528762000,-500.0,0.00041025,120]
[422044999,1778528762000,-500.0,0.00041025,120]
[422044998,1778528762000,-500.0,0.00041025,120]
[422045010,1778528762000,-500.0,0.00041025,120]
[422045002,1778528762000,-500.0,0.00041025,120]
[422045009,1778528762000,-503.80448355,0.00041025,120]
[422045014,1778528762000,-434.12909118,0.00041025,120]
[422045013,1778528762000,-609.00901197,0.00041025,120]
[422045026,1778528762000,-3291.88,0.00041025,120]
[422045025,1778528762000,-3291.88,0.00041025,120]
[422045024,1778528762000,-3291.88,0.00041025,120]
[422045011,1778528762000,-502.10445571,0.00041025,120]
[422045022,1778528762000,-3291.88,0.00041025,120]
[422045021,1778528762000,-3291.88,0.00041025,120]
[422045023,1778528762000,-3291.88,0.00041025,120]
[422045018,1778528762000,-3291.88,0.00041025,120]
[422045019,1778528762000,-3291.88,0.00041025,120]
[422045017,1778528762000,-3291.88,0.00041025,120]
[422045016,1778528762000,-3291.88,0.00041025,120]
[422045015,1778528762000,-3291.88,0.00041025,120]
[422045012,1778528762000,-268000.0,0.00041025,120]
[422045020,1778528762000,-3291.88,0.00041025,120]
[422045040,1778528763000,-326.67124004,0.00041025,120]
[422045038,1778528763000,-3292.05101618,0.00041025,120]
[422045037,1778528763000,-3291.88,0.00041025,120]
[422045033,1778528763000,-3291.88,0.00041025,120]
[422045036,1778528763000,-3291.88,0.00041025,120]
[422045034,1778528763000,-3291.88,0.00041025,120]
[422045041,1778528763000,-500.0,0.00041025,120]
[422045032,1778528763000,-3291.88,0.00041025,120]
[422045029,1778528763000,-3291.88,0.00041025,120]
[422045030,1778528763000,-3291.88,0.00041025,120]
[422045031,1778528763000,-3291.88,0.00041025,120]
[422045028,1778528763000,-3291.88,0.00041025,120]
[422045027,1778528763000,-3291.88,0.00041025,120]
[422045035,1778528763000,-3291.88,0.00041025,120]
[422045039,1778528763000,-2485.91425445,0.00041025,120]
[422045047,1778528763000,-538.96067332,0.00041025,120]
[422045043,1778528763000,-500.0,0.00041025,120]
[422045057,1778528763000,-500.0,0.00041025,120]
[422045055,1778528763000,-500.0,0.00041025,120]
[422045056,1778528763000,-500.0,0.00041025,120]
[422045054,1778528763000,-500.0,0.00041025,120]
[422045053,1778528763000,-500.0,0.00041025,120]
[422045052,1778528763000,-500.0,0.00041025,120]
[422045042,1778528763000,-500.0,0.00041025,120]
[422045049,1778528763000,-500.0,0.00041025,120]
[422045050,1778528763000,-500.0,0.00041025,120]
[422045048,1778528763000,-500.0,0.00041025,120]
[422045046,1778528763000,-307.52482331,0.00041025,120]
[422045045,1778528763000,-235.0861668,0.00041025,120]
[422045044,1778528763000,-500.0,0.00041025,120]
[422045051,1778528763000,-500.0,0.00041025,120]
[422045070,1778528764000,-500.0,0.00041025,120]
[422045068,1778528764000,-500.0,0.00041025,120]
[422045069,1778528764000,-289.95,0.00041025,120]
[422045064,1778528764000,-500.0,0.00041025,120]
[422045067,1778528764000,-590.55336232,0.00041025,120]
[422045066,1778528764000,-500.0,0.00041025,120]
[422045062,1778528764000,-500.0,0.00041025,120]
[422045061,1778528764000,-500.0,0.00041025,120]
[422045063,1778528764000,-500.0,0.00041025,120]
[422045060,1778528764000,-500.0,0.00041025,120]
[422045058,1778528764000,-500.0,0.00041025,120]
[422045059,1778528764000,-500.0,0.00041025,120]
[422045072,1778528764000,-500.0,0.00041025,120]
[422045065,1778528764000,-500.0,0.00041025,120]
[422045073,1778528764000,-500.0,0.00041025,120]
[422045071,1778528764000,-500.0,0.00041025,120]
[422045075,1778528764000,-500.0,0.00041025,120]
[422045088,1778528764000,-500.0,0.00041025,120]
[422045086,1778528764000,-500.0,0.00041025,120]
[422045084,1778528764000,-500.0,0.00041025,120]
[422045085,1778528764000,-500.0,0.00041025,120]
[422045082,1778528764000,-500.0,0.00041025,120]
[422045081,1778528764000,-500.0,0.00041025,120]
[422045087,1778528764000,-500.0,0.00041025,120]
[422045080,1778528764000,-500.0,0.00041025,120]
[422045079,1778528764000,-3841.35,0.00041025,120]
[422045078,1778528764000,-323.50050681,0.00041025,120]
[422045077,1778528764000,-385.19138974,0.00041025,120]
[422045074,1778528764000,-500.0,0.00041025,120]
[422045076,1778528764000,-500.0,0.00041025,120]
[422045083,1778528764000,-500.0,0.00041025,120]
[422045100,1778528765000,-500.0,0.00041025,120]
[422045099,1778528765000,-500.0,0.00041025,120]
[422045097,1778528765000,-612.55753499,0.00041025,120]
[422045098,1778528765000,-500.0,0.00041025,120]
[422045096,1778528765000,-500.0,0.00041025,120]
[422045094,1778528765000,-500.0,0.00041025,120]
[422045093,1778528765000,-500.0,0.00041025,120]
[422045092,1778528765000,-500.0,0.00041025,120]
[422045091,1778528765000,-500.0,0.00041025,120]
[422045089,1778528765000,-500.0,0.00041025,120]
[422045090,1778528765000,-500.0,0.00041025,120]
[422045101,1778528765000,-500.0,0.00041025,120]
[422045095,1778528765000,-500.0,0.00041025,120]
[422045103,1778528765000,-500.0,0.00041025,120]
[422045104,1778528765000,-500.0,0.00041025,120]
[422045118,1778528765000,-500.0,0.00041025,120]
[422045119,1778528765000,-500.0,0.00041025,120]
[422045117,1778528765000,-500.0,0.00041025,120]
[422045116,1778528765000,-501.39314795,0.00041025,120]
[422045115,1778528765000,-500.0,0.00041025,120]
[422045113,1778528765000,-201.4315,0.00041025,120]
[422045112,1778528765000,-5000.0,0.00041025,120]
[422045114,1778528765000,-1789.6524,0.00041025,120]
[422045105,1778528765000,-500.0,0.00041025,120]
[422045109,1778528765000,-5220.63958439,0.00041025,120]
[422045111,1778528765000,-5000.0,0.00041025,120]
[422045108,1778528765000,-509.10975025,0.00041025,120]
[422045107,1778528765000,-500.0,0.00041025,120]
[422045106,1778528765000,-500.0,0.00041025,120]
[422045102,1778528765000,-500.0,0.00041025,120]
[422045110,1778528765000,-762.75882846,0.00041025,120]
[422045133,1778528766000,-500.0,0.00041025,120]
[422045132,1778528766000,-500.0,0.00041025,120]
[422045129,1778528766000,-500.0,0.00041025,120]
[422045130,1778528766000,-500.0,0.00041025,120]
[422045131,1778528766000,-500.0,0.00041025,120]
[422045128,1778528766000,-500.0,0.00041025,120]
[422045126,1778528766000,-500.0,0.00041025,120]
[422045123,1778528766000,-500.0,0.00041025,120]
[422045125,1778528766000,-500.0,0.00041025,120]
[422045124,1778528766000,-500.0,0.00041025,120]
[422045121,1778528766000,-500.0,0.00041025,120]
[422045122,1778528766000,-500.0,0.00041025,120]
[422045120,1778528766000,-500.0,0.00041025,120]
[422045134,1778528766000,-500.0,0.00041025,120]
[422045127,1778528766000,-500.0,0.00041025,120]
[422045135,1778528766000,-500.0,0.00041025,120]
[422045140,1778528766000,-166.982,0.00041025,120]
[422045136,1778528766000,-500.0,0.00041025,120]
[422045149,1778528766000,-8288.4579332,0.00041025,120]
[422045151,1778528766000,-362.01991084,0.00041025,120]
[422045150,1778528766000,-843.1215,0.00041025,120]
[422045147,1778528766000,-403.29544799,0.00041025,120]
[422045138,1778528766000,-500.0,0.00041025,120]
[422045148,1778528766000,-501.3371305,0.00041025,120]
[422045145,1778528766000,-500.0,0.00041025,120]
[422045146,1778528766000,-500.0,0.00041025,120]
[422045144,1778528766000,-500.0,0.00041025,120]
[422045142,1778528766000,-15611.27871877,0.00041025,120]
[422045141,1778528766000,-181.94375777,0.00041025,120]
[422045139,1778528766000,-532.67729968,0.00041025,120]
[422045137,1778528766000,-500.0,0.00041025,120]
[422045143,1778528766000,-388.65540068,0.00041025,120]
[422045158,1778528767000,-520.34,0.00041025,120]
[422045161,1778528767000,-520.34,0.00041025,120]
[422045163,1778528767000,-520.34,0.00041025,120]
[422045164,1778528767000,-520.34,0.00041025,120]
[422045162,1778528767000,-520.34,0.00041025,120]
[422045159,1778528767000,-520.34,0.00041025,120]
[422045166,1778528767000,-520.34,0.00041025,120]
[422045156,1778528767000,-520.34,0.00041025,120]
[422045157,1778528767000,-520.34,0.00041025,120]
[422045155,1778528767000,-508.7355476,0.00041025,120]
[422045153,1778528767000,-500.0,0.00041025,120]
[422045154,1778528767000,-500.0,0.00041025,120]
[422045152,1778528767000,-513.04657838,0.00041025,120]
[422045160,1778528767000,-520.34,0.00041025,120]
[422045165,1778528767000,-520.34,0.00041025,120]
[422045167,1778528767000,-520.34,0.00041025,120]
[422045169,1778528767000,-520.34,0.00041025,120]
[422045181,1778528767000,-500.0,0.00041025,120]
[422045182,1778528767000,-500.0,0.00041025,120]
[422045180,1778528767000,-1210.63394784,0.00041025,120]
[422045179,1778528767000,-520.3429023,0.00041025,120]
[422045178,1778528767000,-520.34,0.00041025,120]
[422045177,1778528767000,-520.34,0.00041025,120]
[422045176,1778528767000,-520.34,0.00041025,120]
[422045183,1778528767000,-500.0,0.00041025,120]
[422045173,1778528767000,-520.34,0.00041025,120]
[422045174,1778528767000,-520.34,0.00041025,120]
[422045172,1778528767000,-520.34,0.00041025,120]
[422045171,1778528767000,-520.34,0.00041025,120]
[422045170,1778528767000,-520.34,0.00041025,120]
[422045168,1778528767000,-520.34,0.00041025,120]
[422045175,1778528767000,-520.34,0.00041025,120]
[422045196,1778528768000,-160.68788959,0.00041025,120]
[422045194,1778528768000,-500.0,0.00041025,120]
[422045195,1778528768000,-562.37086261,0.00041025,120]
[422045193,1778528768000,-578.1929549,0.00041025,120]
[422045191,1778528768000,-500.0,0.00041025,120]
[422045192,1778528768000,-500.0,0.00041025,120]
[422045187,1778528768000,-520.51674043,0.00041025,120]
[422045188,1778528768000,-500.0,0.00041025,120]
[422045190,1778528768000,-500.0,0.00041025,120]
[422045186,1778528768000,-607.97237171,0.00041025,120]
[422045185,1778528768000,-500.0,0.00041025,120]
[422045184,1778528768000,-500.0,0.00041025,120]
[422045197,1778528768000,-500.0,0.00041025,120]
[422045189,1778528768000,-500.0,0.00041025,120]
[422045199,1778528768000,-418.68691929,0.00041025,120]
[422045200,1778528768000,-355.64231983,0.00041025,120]
[422045198,1778528768000,-478.42969192,0.00041025,120]
[422045214,1778528768000,-500.0,0.00041025,120]
[422045212,1778528768000,-500.0,0.00041025,120]
[422045213,1778528768000,-500.0,0.00041025,120]
[422045211,1778528768000,-500.0,0.00041025,120]
[422045209,1778528768000,-500.0,0.00041025,120]
[422045210,1778528768000,-601.28937304,0.00041025,120]
[422045208,1778528768000,-219.47388912,0.00041025,120]
[422045215,1778528768000,-500.0,0.00041025,120]
[422045205,1778528768000,-500.0,0.00041025,120]
[422045206,1778528768000,-500.0,0.00041025,120]
[422045204,1778528768000,-500.0,0.00041025,120]
[422045203,1778528768000,-500.0,0.00041025,120]
[422045201,1778528768000,-500.0,0.00041025,120]
[422045202,1778528768000,-500.0,0.00041025,120]
[422045207,1778528768000,-269.84073382,0.00041025,120]
[422045227,1778528769000,-500.0,0.00041025,120]
[422045229,1778528769000,-500.0,0.00041025,120]
[422045225,1778528769000,-2713.0,0.00041025,120]
[422045226,1778528769000,-500.0,0.00041025,120]
[422045224,1778528769000,-102114.16576531,0.00041025,120]
[422045221,1778528769000,-500.0,0.00041025,120]
[422045217,1778528769000,-500.0,0.00041025,120]
[422045220,1778528769000,-500.0,0.00041025,120]
[422045222,1778528769000,-160.76921259,0.00041025,120]
[422045219,1778528769000,-500.0,0.00041025,120]
[422045218,1778528769000,-500.0,0.00041025,120]
[422045216,1778528769000,-500.0,0.00041025,120]
[422045228,1778528769000,-500.0,0.00041025,120]
[422045223,1778528769000,-236.47984385,0.00041025,120]
[422045232,1778528769000,-500.0,0.00041025,120]
[422045230,1778528769000,-500.0,0.00041025,120]
[422045231,1778528769000,-500.0,0.00041025,120]
[422045245,1778528769000,-500.0,0.00041025,120]
[422045243,1778528769000,-360.32,0.00041025,120]
[422045244,1778528769000,-500.0,0.00041025,120]
[422045242,1778528769000,-500.0,0.00041025,120]
[422045241,1778528769000,-500.0,0.00041025,120]
[422045240,1778528769000,-500.0,0.00041025,120]
[422045246,1778528769000,-500.0,0.00041025,120]
[422045238,1778528769000,-500.0,0.00041025,120]
[422045237,1778528769000,-500.0,0.00041025,120]
[422045236,1778528769000,-500.0,0.00041025,120]
[422045235,1778528769000,-500.0,0.00041025,120]
[422045234,1778528769000,-500.0,0.00041025,120]
[422045233,1778528769000,-500.0,0.00041025,120]
[422045239,1778528769000,-500.0,0.00041025,120]
[422045259,1778528770000,-500.0,0.00041025,120]
[422045256,1778528770000,-225.570705,0.00041025,120]
[422045257,1778528770000,-212.493448,0.00041025,120]
[422045255,1778528770000,-1933.519704,0.00041025,120]
[422045252,1778528770000,-500.0,0.00041025,120]
[422045254,1778528770000,-1933.519704,0.00041025,120]
[422045249,1778528770000,-500.0,0.00041025,120]
[422045251,1778528770000,-500.0,0.00041025,120]
[422045250,1778528770000,-500.0,0.00041025,120]
[422045248,1778528770000,-500.0,0.00041025,120]
[422045247,1778528770000,-500.0,0.00041025,120]
[422045258,1778528770000,-500.0,0.00041025,120]
[422045253,1778528770000,-187.46162201,0.00041025,120]
[422045260,1778528770000,-500.0,0.00041025,120]
[422045261,1778528770000,-500.0,0.00041025,120]
[422045272,1778528770000,-180.34,0.00041025,120]
[422045263,1778528770000,-319.67,0.00041025,120]
[422045276,1778528770000,-221.853596,0.00041025,120]
[422045275,1778528770000,-518.22039596,0.00041025,120]
[422045274,1778528770000,-538.64471673,0.00041025,120]
[422045273,1778528770000,-500.0,0.00041025,120]
[422045271,1778528770000,-500.0,0.00041025,120]
[422045277,1778528770000,-500.0,0.00041025,120]
[422045270,1778528770000,-500.0,0.00041025,120]
[422045269,1778528770000,-500.0,0.00041025,120]
[422045266,1778528770000,-500.0,0.00041025,120]
[422045267,1778528770000,-500.0,0.00041025,120]
[422045265,1778528770000,-500.0,0.00041025,120]
[422045262,1778528770000,-500.0,0.00041025,120]
[422045264,1778528770000,-500.0,0.00041025,120]
[422045268,1778528770000,-500.0,0.00041025,120]
[422045288,1778528771000,-500.0,0.00041025,120]
[422045291,1778528771000,-521.44118224,0.00041025,120]
[422045289,1778528771000,-259.32,0.00041025,120]
[422045287,1778528771000,-500.0,0.00041025,120]
[422045290,1778528771000,-512.30665144,0.00041025,120]
[422045286,1778528771000,-538.22562602,0.00041025,120]
[422045278,1778528771000,-311.08,0.00041025,120]
[422045284,1778528771000,-537.80083678,0.00041025,120]
[422045283,1778528771000,-500.0,0.00041025,120]
[422045281,1778528771000,-500.0,0.00041025,120]
[422045282,1778528771000,-447.38015977,0.00041025,120]
[422045280,1778528771000,-500.0,0.00041025,120]
[422045279,1778528771000,-500.0,0.00041025,120]
[422045285,1778528771000,-516.44500332,0.00041025,120]
[422045292,1778528771000,-523.61834298,0.00041025,120]
[422045297,1778528771000,-500.0,0.00041025,120]
[422045293,1778528771000,-500.0,0.00041025,120]
[422045294,1778528771000,-500.0,0.00041025,120]
[422045308,1778528771000,-500.0,0.00041025,120]
[422045306,1778528771000,-646.42745074,0.00041025,120]
[422045305,1778528771000,-500.0,0.00041025,120]
[422045307,1778528771000,-500.0,0.00041025,120]
[422045303,1778528771000,-524.77471878,0.00041025,120]
[422045304,1778528771000,-587.16308401,0.00041025,120]
[422045309,1778528771000,-500.0,0.00041025,120]
[422045301,1778528771000,-415.01821672,0.00041025,120]
[422045299,1778528771000,-500.0,0.00041025,120]
[422045300,1778528771000,-500.0,0.00041025,120]
[422045296,1778528771000,-500.0,0.00041025,120]
[422045298,1778528771000,-517.83654399,0.00041025,120]
[422045295,1778528771000,-609.7687135,0.00041025,120]
[422045302,1778528771000,-531.93075526,0.00041025,120]
[422045322,1778528772000,-632.53227403,0.00041025,120]
[422045320,1778528772000,-500.0,0.00041025,120]
[422045318,1778528772000,-500.0,0.00041025,120]
[422045319,1778528772000,-500.0,0.00041025,120]
[422045317,1778528772000,-500.0,0.00041025,120]
[422045316,1778528772000,-500.0,0.00041025,120]
[422045313,1778528772000,-500.0,0.00041025,120]
[422045314,1778528772000,-500.0,0.00041025,120]
[422045311,1778528772000,-508.18561836,0.00041025,120]
[422045312,1778528772000,-500.0,0.00041025,120]
[422045310,1778528772000,-435.38,0.00041025,120]
[422045323,1778528772000,-615.46121007,0.00041025,120]
[422045315,1778528772000,-187.51984781,0.00041025,120]
[422045321,1778528772000,-500.0,0.00041025,120]
[422045325,1778528772000,-569.15260523,0.00041025,120]
[422045324,1778528772000,-603.71182871,0.00041025,120]
[422045335,1778528772000,-380.21740911,0.00041025,120]
[422045337,1778528772000,-500.0,0.00041025,120]
[422045336,1778528772000,-500.0,0.00041025,120]
[422045334,1778528772000,-500.0,0.00041025,120]
[422045332,1778528772000,-500.0,0.00041025,120]
[422045333,1778528772000,-397.70754879,0.00041025,120]
[422045338,1778528772000,-500.0,0.00041025,120]
[422045329,1778528772000,-501.84282957,0.00041025,120]
[422045330,1778528772000,-220.57,0.00041025,120]
[422045327,1778528772000,-500.0,0.00041025,120]
[422045328,1778528772000,-500.0,0.00041025,120]
[422045326,1778528772000,-500.0,0.00041025,120]
[422045331,1778528772000,-516.67344105,0.00041025,120]
[422045350,1778528773000,-494.31709668,0.00041025,120]
[422045347,1778528773000,-500.0,0.00041025,120]
[422045349,1778528773000,-493.2225448,0.00041025,120]
[422045348,1778528773000,-500.0,0.00041025,120]
[422045345,1778528773000,-511.81418721,0.00041025,120]
[422045346,1778528773000,-500.0,0.00041025,120]
[422045343,1778528773000,-500.0,0.00041025,120]
[422045341,1778528773000,-500.0,0.00041025,120]
[422045342,1778528773000,-620.69620672,0.00041025,120]
[422045340,1778528773000,-500.0,0.00041025,120]
[422045339,1778528773000,-500.0,0.00041025,120]
[422045352,1778528773000,-518.21453593,0.00041025,120]
[422045344,1778528773000,-616.59,0.00041025,120]
[422045351,1778528773000,-525.1640528,0.00041025,120]
[422045357,1778528773000,-500.0,0.00041025,120]
[422045353,1778528773000,-521.33572257,0.00041025,120]
[422045354,1778528773000,-500.0,0.00041025,120]
[422045367,1778528773000,-500.0,0.00041025,120]
[422045365,1778528773000,-500.0,0.00041025,120]
[422045366,1778528773000,-500.0,0.00041025,120]
[422045364,1778528773000,-574.21546599,0.00041025,120]
[422045363,1778528773000,-500.0,0.00041025,120]
[422045362,1778528773000,-500.0,0.00041025,120]
[422045359,1778528773000,-500.0,0.00041025,120]
[422045360,1778528773000,-500.0,0.00041025,120]
[422045358,1778528773000,-500.0,0.00041025,120]
[422045356,1778528773000,-580.17756693,0.00041025,120]
[422045368,1778528773000,-244.16555143,0.00041025,120]
[422045355,1778528773000,-525.66847292,0.00041025,120]
[422045361,1778528773000,-500.0,0.00041025,120]
[422045376,1778528774000,-558.90642457,0.00041025,120]
[422045380,1778528774000,-500.0,0.00041025,120]
[422045378,1778528774000,-500.0,0.00041025,120]
[422045379,1778528774000,-498.56712157,0.00041025,120]
[422045377,1778528774000,-500.0,0.00041025,120]
[422045369,1778528774000,-595.32329663,0.00041025,120]
[422045375,1778528774000,-500.0,0.00041025,120]
[422045372,1778528774000,-500.0,0.00041025,120]
[422045373,1778528774000,-500.0,0.00041025,120]
[422045371,1778528774000,-500.0,0.00041025,120]
[422045370,1778528774000,-500.0,0.00041025,120]
[422045381,1778528774000,-500.0,0.00041025,120]
[422045374,1778528774000,-517.76181885,0.00041025,120]
[422045382,1778528774000,-500.0,0.00041025,120]
[422045385,1778528774000,-464.73814637,0.00041025,120]
[422045384,1778528774000,-500.0,0.00041025,120]
[422045396,1778528774000,-523.79213192,0.00041025,120]
[422045383,1778528774000,-423.28449723,0.00041025,120]
[422045395,1778528774000,-529.26756997,0.00041025,120]
[422045393,1778528774000,-539.72004544,0.00041025,120]
[422045394,1778528774000,-500.0,0.00041025,120]
[422045392,1778528774000,-372.69247363,0.00041025,120]
[422045397,1778528774000,-500.0,0.00041025,120]
[422045390,1778528774000,-500.0,0.00041025,120]
[422045389,1778528774000,-620.73816767,0.00041025,120]
[422045388,1778528774000,-502.63206979,0.00041025,120]
[422045387,1778528774000,-466.64468541,0.00041025,120]
[422045386,1778528774000,-338.66,0.00041025,120]
[422045391,1778528774000,-500.0,0.00041025,120]
[422045398,1778528775000,-301.31,0.00041025,120]
[422045399,1778528775000,-500.0,0.00041025,120]
[422045408,1778528775000,-500.0,0.00041025,120]
[422045400,1778528775000,-536.35624877,0.00041025,120]
[422045401,1778528775000,-236.02878703,0.00041025,120]
[422045403,1778528775000,-511.75338689,0.00041025,120]
[422045405,1778528775000,-535.24717058,0.00041025,120]
[422045404,1778528775000,-550.59784728,0.00041025,120]
[422045406,1778528775000,-500.0,0.00041025,120]
[422045407,1778528775000,-526.58414655,0.00041025,120]
[422045402,1778528775000,-511.92571803,0.00041025,120]
[422045409,1778528775000,-500.0,0.00041025,120]
[422045419,1778528775000,-578.08670326,0.00041025,120]
[422045418,1778528775000,-526.49210191,0.00041025,120]
[422045417,1778528775000,-544.52669967,0.00041025,120]
[422045416,1778528775000,-557.9573124,0.00041025,120]
[422045410,1778528775000,-451.98,0.00041025,120]
[422045413,1778528775000,-534.90136357,0.00041025,120]
[422045412,1778528775000,-546.92376134,0.00041025,120]
[422045414,1778528775000,-500.0,0.00041025,120]
[422045411,1778528775000,-507.45744314,0.00041025,120]
[422045415,1778528775000,-391.34077789,0.00041025,120]
[422045429,1778528776000,-568.12,0.00041025,120]
[422045420,1778528776000,-580.34472221,0.00041025,120]
[422045421,1778528776000,-516.45526731,0.00041025,120]
[422045422,1778528776000,-586.51775213,0.00041025,120]
[422045423,1778528776000,-531.44062229,0.00041025,120]
[422045424,1778528776000,-527.87,0.00041025,120]
[422045425,1778528776000,-500.0,0.00041025,120]
[422045426,1778528776000,-500.0,0.00041025,120]
[422045427,1778528776000,-544.76541689,0.00041025,120]
[422045430,1778528776000,-500.0,0.00041025,120]
[422045428,1778528776000,-500.0,0.00041025,120]
[422045439,1778528776000,-500.0,0.00041025,120]
[422045432,1778528776000,-471.42327453,0.00041025,120]
[422045433,1778528776000,-509.78093756,0.00041025,120]
[422045434,1778528776000,-500.0,0.00041025,120]
[422045435,1778528776000,-500.0,0.00041025,120]
[422045436,1778528776000,-500.0,0.00041025,120]
[422045437,1778528776000,-500.0,0.00041025,120]
[422045438,1778528776000,-500.0,0.00041025,120]
[422045440,1778528776000,-500.0,0.00041025,120]
[422045441,1778528776000,-153.21244097,0.00041025,120]
[422045431,1778528776000,-500.0,0.00041025,120]
[422045450,1778528777000,-921.89,0.00041025,120]